fUSD/lending_fUSD_20251225
["ID","MTS","AMOUNT","RATE_DAILY","PERIOD"]
[399728796,1766638275910,-151.0,0.00038998,45]
[399728797,1766638275923,-1500.0,0.00038998,31]
[399728798,1766638275938,-1500.0,0.00038998,45]
[399728799,1766638275951,-500.0,0.00038998,30]
[399728800,1766638275975,-500.0,0.00038998,31]
[399728801,1766638275992,-500.0,0.00038998,45]
[399728802,1766638276008,-500.0,0.00038998,30]
[399728803,1766638276023,-500.0,0.00038998,31]
[399728804,1766638276037,-500.0,0.00038998,45]
[399728805,1766638276052,-250.0,0.00038998,30]
[399728806,1766638276066,-1500.0,0.00038998,30]
[399728807,1766638276081,-1500.0,0.00038998,31]
[399728808,1766638276094,-250.0,0.00038998,31]
[399728809,1766638276107,-1500.0,0.00038998,45]
[399728810,1766638276122,-250.0,0.00038998,45]
[399728811,1766638276137,-250.0,0.00038998,30]
[399728812,1766638276152,-250.0,0.00038998,31]
[399728813,1766638276165,-250.0,0.00038998,45]
[399728814,1766638276181,-151.0,0.00038998,30]
[399728815,1766638276196,-151.0,0.00038998,31]
[399728816,1766638276210,-151.0,0.00038998,45]
[399728817,1766638276225,-518.5,0.00038998,30]
[399728818,1766638276240,-537.6845,0.00038998,31]
[399728819,1766638276256,-557.5788265,0.00038998,45]
[399728820,1766638276270,-151.0,0.00038998,30]
[399728821,1766638276285,-155.81290792,0.00038998,31]
[399728822,1766638276304,-543.0,0.00038998,30]
[399728823,1766638276319,-543.0,0.00038998,31]
[399728824,1766638276334,-543.0,0.00038998,45]
[399728825,1766638276348,-7193.74045746,0.00038998,2]
[399728826,1766638276363,-150.0,0.00038999,2]
[399728827,1766638276377,-169.34762389,0.00038999,30]
[399728828,1766638276397,-169.34762389,0.00038999,30]
[399728829,1766638276411,-169.34762389,0.00038999,30]
[399728830,1766638276424,-169.34762389,0.00038999,30]
[399728831,1766638276439,-169.34762389,0.00038999,30]
[399728832,1766638276452,-169.34762389,0.00038999,30]
[399728833,1766638276466,-169.34762389,0.00038999,30]
[399728834,1766638276480,-169.34762389,0.00038999,30]
[399728835,1766638276492,-169.34762389,0.00038999,30]
[399728836,1766638276505,-169.34762389,0.00038999,30]
[399728837,1766638276518,-300.0,0.00038999,31]
[399728838,1766638276531,-300.0,0.00038999,31]
[399728839,1766638276543,-250.0,0.00038999,31]
[399728840,1766638276556,-500.0,0.00038999,31]
[399728841,1766638276569,-151.0,0.00038999,31]
[399728842,1766638276581,-414.0,0.00038999,31]
[399728843,1766638276594,-500.0,0.00038999,31]
[399728844,1766638276605,-520.0,0.00038999,31]
[399728845,1766638276617,-500.0,0.00038999,31]
[399728846,1766638276631,-151.0,0.00038999,31]
[399728847,1766638276643,-151.0,0.00038999,31]
[399728848,1766638276656,-1500.0,0.00038999,31]
[399728849,1766638276668,-500.0,0.00038999,31]
[399728850,1766638276680,-153.04435224,0.00038999,31]
[399728851,1766638276693,-500.0,0.00038999,31]
[399728852,1766638276710,-1500.0,0.00038999,31]
[399728853,1766638276723,-250.0,0.00038999,31]
[399728854,1766638276736,-250.0,0.00038999,31]
[399728855,1766638276749,-151.0,0.00038999,31]
[399728856,1766638276762,-500.0,0.00038999,31]
[399728857,1766638276775,-151.0,0.00038999,31]
[399728858,1766638276788,-543.0,0.00038999,31]
[399728859,1766638276801,-1500.0,0.00038999,31]
[399728860,1766638276813,-200.0,0.00038999,31]
[399728861,1766638276825,-50000.0,0.00039,39]
[399728862,1766638276838,-50000.0,0.00039,29]
[399728863,1766638276851,-50000.0,0.00039,19]
[399728864,1766638276863,-3304124.54297449,0.00039,2]
[399728865,1766638277144,-261.13225007,0.00039,2]
[399728866,1766638277338,-1015.95344153,0.00012075,2]
[399728867,1766638277352,-542.04655847,0.00012075,2]
[399728868,1766638277362,-94.91345053,0.00012099,2]
[399728869,1766638277374,-1486.08654947,0.00012099,2]
[399728870,1766638277385,-182.35143657,0.000169,2]
[399728871,1766638277396,-170.28248417,0.00029858,2]
[399728872,1766638277406,-263.759338,0.00032877,31]
[399728873,1766638277416,-263.759338,0.00032877,31]
[399728874,1766638277427,-263.759338,0.00032877,31]
[399728875,1766638277437,-263.759338,0.00032877,31]
[399728876,1766638277447,-6534.0,0.00035069,2]
[399728877,1766638277458,-6534.0,0.00038069,2]
[399728878,1766638277469,-36121.85644692,0.00039,2]
[399728879,1766638277483,-304647.74791185,0.00039,2]
[399728880,1766638277499,-3865.14,0.00039,2]
[399728881,1766638277511,-47141.73811631,0.00039,2]
[399728882,1766638277523,-131176.22938565,0.00039,2]
[399728883,1766638277534,-4139.35275217,0.00039,2]
[399728884,1766638277546,-1164.99761564,0.00039,2]
[399728885,1766638277565,-4779.79456686,0.00039,2]
[399728886,1766638277577,-337.27249606,0.00039,2]
[399728887,1766638277593,-1101.40168,0.00039,2]
[399728888,1766638277604,-1302.81008527,0.00039,2]
[399728889,1766638277616,-504.95613233,0.00039,2]
[399728890,1766638277628,-801.62858665,0.00039,2]
[399728891,1766638277640,-392.42322,0.00039,2]
[399728892,1766638277652,-412.05845751,0.00039,2]
[399728893,1766638277663,-2146.20119742,0.00039,2]
[399728894,1766638277675,-4334.78576873,0.00039,2]
[399728895,1766638277691,-37553.71313785,0.00039,2]
[399728896,1766638278421,-1270.0,0.00012123,2]
[399728897,1766638278431,-239.34266157,0.00012147,2]
[399728898,1766638278443,-682.7185601,0.00012147,2]
[399728899,1766638278455,-829.93877833,0.00012147,2]
[399728900,1766638278466,-349.0,0.00012172,2]
[399728901,1766638278476,-182.35143652,0.000213,2]
[399728902,1766638278487,-182.35143652,0.000257,2]
[399728903,1766638278497,-182.35143652,0.000301,2]
[399728904,1766638278507,-263.759338,0.00032877,31]
[399728905,1766638278518,-263.759338,0.00032877,31]
[399728906,1766638278527,-151.0,0.00032877,31]
[399728907,1766638278538,-151.0,0.00032877,31]
[399728908,1766638278548,-182.35143652,0.000345,2]
[399728909,1766638278558,-659.62,0.00036192,2]
[399728910,1766638278569,-103158.06954768,0.00039,2]
[399728911,1766638278584,-420.22282652,0.00039,2]
[399728912,1766638278597,-431.69864103,0.00039,2]
[399728913,1766638278608,-2503.20420611,0.00039,2]
[399728914,1766638278619,-3605.53971555,0.00039,2]
[399728915,1766638278632,-769.79160068,0.00039,2]
[399728916,1766638278643,-360.0026,0.00039,2]
[399728917,1766638278667,-300.97471205,0.00012196,2]
[399728918,1766638278679,-1057.83701526,0.00012196,2]
[399728919,1766638278691,-280.18827269,0.00012196,2]
[399728920,1766638278700,-326.36472731,0.00039,2]
[399728921,1766638278713,-10276.89826205,0.00039,2]
[399728922,1766638278725,-45250.25318156,0.00039,2]
[399728923,1766638278737,-14218.90041072,0.00039,2]
[399728924,1766638278750,-705.00959292,0.00039,2]
[399728925,1766638278762,-582.0582955,0.00039,2]
[399728926,1766638278774,-625.30763868,0.00039,2]
[399728927,1766638320417,-769.79160068,0.00027369,30]
[399728928,1766638338524,6000.0,0.00014,3]
[399728929,1766638355460,200.0,0.000226,120]
[399728930,1766638369829,-283.06177971,0.00011438,2]
[399728931,1766638369866,-4433.88644058,0.000115,2]
[399728932,1766638369921,-566.11355942,0.000115,2]
[399728933,1766638369954,-300.0,0.00011519,2]
[399728934,1766638369985,-241.5154,0.00011537,2]
[399728935,1766638370019,-300.0,0.00011537,2]
[399728936,1766638370049,-150.0,0.00011537,2]
[399728937,1766638370079,-500.0,0.00011537,2]
[399728938,1766638370110,-160.55003694,0.00011537,2]
[399728939,1766638370145,-500.0,0.00011537,2]
[399728940,1766638370178,-500.0,0.00011537,2]
[399728941,1766638370212,-500.0,0.00011537,2]
[399728942,1766638370248,-500.0,0.00011537,2]
[399728943,1766638370287,-500.0,0.00011537,2]
[399728944,1766638370320,-500.0,0.00011537,2]
[399728945,1766638370354,-115.03110178,0.00011537,2]
[399728946,1766638370472,-465.81692256,0.00011537,2]
[399728947,1766638370506,-4125.49595488,0.00011538,2]
[399728948,1766638370600,-817.38424512,0.00011538,2]
[399728949,1766638370742,-465.81692256,0.00011538,2]
[399728950,1766638370758,-817.38424512,0.00011538,2]
[399728951,1766638370785,-8365.24150976,0.00011538,2]
[399728952,1766638370799,-10000.01,0.00011538,2]
[399728953,1766638370815,-10000.01,0.00011538,2]
[399728954,1766638370842,-10000.01,0.00011538,2]
[399728955,1766638370873,-10000.01,0.00011538,2]
[399728956,1766638371349,-1181.65895803,0.00011538,2]
[399728957,1766638372791,-10000.01,0.00011538,2]
[399728958,1766638390833,-300.0,0.00011537,2]
[399728959,1766638390871,-9400.01,0.00011538,2]
[399728960,1766638390958,-10000.01,0.00011538,2]
[399728961,1766638403044,-10000.01,0.00011538,2]
[399728962,1766638409035,-10000.01,0.00011538,2]
[399728963,1766638430520,300.0,0.00011438,30]
[399728964,1766638474876,-258.13,0.000113,2]
[399728965,1766638474909,-166.1789428,0.00011438,2]
[399728966,1766638474944,-194.20817122,0.00011438,2]
[399728967,1766638474983,-1000.0,0.000115,2]
[399728968,1766638475017,-300.0,0.00011537,2]
[399728969,1766638475048,-223.0,0.00011537,2]
[399728970,1766638475078,-150.0,0.00011537,2]
[399728971,1766638476987,-363.7208723,0.00011538,2]
[399728972,1766638480545,-400.40356954,0.00011538,2]
[399728973,1766638484350,-269.83861556,0.00011538,2]
[399728974,1766638485967,-206.21057752,0.00011538,2]
[399728975,1766638487625,-263.6110176,0.00011538,2]
[399728976,1766638489297,500.0,0.00011537,2]
[399728977,1766638489618,500.0,0.00011537,2]
[399728978,1766638489936,500.0,0.00011537,2]
[399728979,1766638490266,500.0,0.00011537,2]
[399728980,1766638491510,-158.10105491,0.00011537,2]
[399728981,1766638567477,-300.0,0.00011536,2]
[399728982,1766638567508,-97.7752429,0.00011537,2]
[399728983,1766638569038,-202.2247571,0.00011537,2]
[399728984,1766638569064,-300.0,0.00011537,2]
[399728985,1766638569089,-228.26239256,0.00011537,2]
[399728986,1766638583112,-622.23675328,0.00011437,2]
[399728987,1766638583145,-250.0,0.00011537,2]
[399728988,1766638583179,-71.73760744,0.00011537,2]
[399728989,1766638583214,-1200.0,0.00011537,2]
[399728990,1766638583250,-165.96632003,0.00011537,2]
[399728991,1766638583285,-580.37463738,0.00011537,2]
[399728992,1766638583324,-1090.69893665,0.00011537,2]
[399728993,1766638583361,-947.28255379,0.00011537,2]
[399728994,1766638583536,-143.41638286,0.00011537,2]
[399728995,1766638583574,-1090.69893665,0.00011537,2]
[399728996,1766638583615,-1090.69893665,0.00011537,2]
[399728997,1766638583653,-1090.69893665,0.00011537,2]
[399728998,1766638584036,-1090.69893665,0.00011537,2]
[399728999,1766638584133,-1090.69893665,0.00011537,2]
[399729000,1766638584168,-1090.69893665,0.00011537,2]
[399729001,1766638584205,-1090.69893665,0.00011537,2]
[399729002,1766638584241,-1090.69893665,0.00011537,2]
[399729003,1766638584279,-183.71957015,0.00011537,2]
[399729004,1766638584561,-90.69893665,0.00011438,2]
[399729005,1766638584672,-103.50923455,0.00011438,2]
[399729006,1766638584701,-113.74051459,0.00011537,2]
[399729007,1766638586034,-793.23885191,0.00011537,2]
[399729008,1766638586071,-1090.69893665,0.00011537,2]
[399729009,1766638586114,-1090.69893665,0.00011537,2]
[399729010,1766638586152,-1090.69893665,0.00011537,2]
[399729011,1766638586190,-778.63973963,0.00011537,2]
[399729012,1766638586355,-312.05919702,0.00011537,2]
[399729013,1766638586392,-1090.69893665,0.00011537,2]
[399729014,1766638586428,-1090.69893665,0.00011537,2]
[399729015,1766638586465,-1090.69893665,0.00011537,2]
[399729016,1766638586503,-1090.69893665,0.00011537,2]
[399729017,1766638586672,-312.05919702,0.00011537,2]
[399729018,1766638586688,-650.30011276,0.00011537,2]
[399729019,1766638587126,-128.33962687,0.00011537,2]
[399729020,1766638587156,-125.0305782,0.00011537,2]
[399729021,1766638589146,-965.66835845,0.00011537,2]
[399729022,1766638589183,-1090.69893665,0.00011537,2]
[399729023,1766638589220,-1090.69893665,0.00011537,2]
[399729024,1766638589255,-1090.69893665,0.00011537,2]
[399729025,1766638589291,-433.78072655,0.00011537,2]
[399729026,1766638589501,-656.9182101,0.00011537,2]
[399729027,1766638589539,-1090.69893665,0.00011537,2]
[399729028,1766638589577,-1090.69893665,0.00011537,2]
[399729029,1766638589611,-1090.69893665,0.00011537,2]
[399729030,1766638589651,-1051.28102325,0.00011537,2]
[399729031,1766638589799,-39.4179134,0.00011537,2]
[399729032,1766638589808,-656.9182101,0.00011537,2]
[399729033,1766638592221,-433.78072655,0.00011537,2]
[399729034,1766638592257,-1090.69893665,0.00011537,2]
[399729035,1766638592309,-1090.69893665,0.00011537,2]
[399729036,1766638592345,-1090.69893665,0.00011537,2]
[399729037,1766638592380,-1090.69893665,0.00011537,2]
[399729038,1766638592488,-1090.69893665,0.00011537,2]
[399729039,1766638592527,-1090.69893665,0.00011537,2]
[399729040,1766638592565,-1090.69893665,0.00011537,2]
[399729041,1766638592601,-1090.69893665,0.00011537,2]
[399729042,1766638592638,-183.71957015,0.00011537,2]
[399729043,1766638592838,-223.13748355,0.00011537,2]
[399729044,1766638592863,-683.84188295,0.00011537,2]
[399729045,1766638592873,-406.8570537,0.00011537,2]
[399729046,1766638624502,-769.79160068,0.000226,30]
[399729047,1766638648772,-1128.262393,0.00011479,2]
[399729048,1766638648803,-200.0,0.00011531,2]
[399729049,1766638648833,-207.4,0.00011531,2]
[399729050,1766638648863,-500.0,0.00011531,2]
[399729051,1766638648892,-500.0,0.00011531,2]
[399729052,1766638648935,-200.0,0.00011531,2]
[399729053,1766638648968,-500.0,0.00011531,2]
[399729054,1766638648999,-500.0,0.00011531,2]
[399729055,1766638649030,-500.0,0.00011531,2]
[399729056,1766638649060,-500.0,0.00011531,2]
[399729057,1766638649091,-28.685214,0.00011531,2]
[399729058,1766638649308,-471.314786,0.00011531,2]
[399729059,1766638655035,-500.0,0.00011531,2]
[399729060,1766638655069,-500.0,0.00011531,2]
[399729061,1766638655103,-500.0,0.00011531,2]
[399729062,1766638655136,-500.0,0.00011531,2]
[399729063,1766638655169,-500.0,0.00011531,2]
[399729064,1766638655203,-500.0,0.00011531,2]
[399729065,1766638655239,-500.0,0.00011531,2]
[399729066,1766638655273,-500.0,0.00011531,2]
[399729067,1766638655307,-500.0,0.00011531,2]
[399729068,1766638655347,-500.0,0.00011531,2]
[399729069,1766638655576,-0.01,0.00011531,2]
[399729070,1766638661062,-499.99,0.00011531,2]
[399729071,1766638661098,-500.0,0.00011531,2]
[399729072,1766638661133,-500.0,0.00011531,2]
[399729073,1766638661168,-151.0,0.00011531,2]
[399729074,1766638661203,-500.0,0.00011531,2]
[399729075,1766638661237,-151.0,0.00011531,2]
[399729076,1766638661273,-500.0,0.00011531,2]
[399729077,1766638661307,-151.0,0.00011531,2]
[399729078,1766638661341,-151.0,0.00011531,2]
[399729079,1766638661375,-151.0,0.00011531,2]
[399729080,1766638661410,-151.0,0.00011531,2]
[399729081,1766638661443,-151.0,0.00011531,2]
[399729082,1766638661477,-151.0,0.00011531,2]
[399729083,1766638661512,-151.0,0.00011531,2]
[399729084,1766638661547,-151.0,0.00011531,2]
[399729085,1766638661584,-151.0,0.00011531,2]
[399729086,1766638661620,-500.0,0.00011531,2]
[399729087,1766638661651,-151.0,0.00011531,2]
[399729088,1766638661686,-151.0,0.00011531,2]
[399729089,1766638662086,-74.03,0.00011531,2]
[399729090,1766638728285,-2869.77482114,0.00011438,2]
[399729091,1766638728319,-880.74407769,0.00011438,2]
[399729092,1766638728361,-194.2081712,0.00011438,2]
[399729093,1766638728393,-300.0,0.0001153,2]
[399729094,1766638728424,-76.97,0.00011531,2]
[399729095,1766638728456,-151.0,0.00011531,2]
[399729096,1766638728501,-151.0,0.00011531,2]
[399729097,1766638728536,-151.0,0.00011531,2]
[399729098,1766638728566,-151.0,0.00011531,2]
[399729099,1766638729115,-148.61585994,0.00011531,2]
[399729100,1766638736384,-2.38414006,0.00011531,2]
[399729101,1766638736419,-151.0,0.00011531,2]
[399729102,1766638736452,-151.0,0.00011531,2]
[399729103,1766638736485,-151.0,0.00011531,2]
[399729104,1766638736519,-151.0,0.00011531,2]
[399729105,1766638736554,-151.0,0.00011531,2]
[399729106,1766638736587,-151.0,0.00011531,2]
[399729107,1766638736618,-151.0,0.00011531,2]
[399729108,1766638736647,-151.0,0.00011531,2]
[399729109,1766638736677,-151.0,0.00011531,2]
[399729110,1766638736709,-151.0,0.00011531,2]
[399729111,1766638736741,-151.0,0.00011531,2]
[399729112,1766638736772,-151.0,0.00011531,2]
[399729113,1766638736809,-500.0,0.00011535,2]
[399729114,1766638736843,-500.0,0.00011535,2]
[399729115,1766638736877,-500.0,0.00011535,2]
[399729116,1766638736911,-500.0,0.00011535,2]
[399729117,1766638736945,-500.0,0.00011535,2]
[399729118,1766638736980,-500.0,0.00011535,2]
[399729119,1766638737313,-371.24171988,0.00011535,2]
[399729120,1766638738825,-128.75828012,0.00011535,2]
[399729121,1766638738860,-500.0,0.00011535,2]
[399729122,1766638738920,-500.0,0.00011535,2]
[399729123,1766638738964,-500.0,0.00011535,2]
[399729124,1766638739010,-500.0,0.00011535,2]
[399729125,1766638739056,-500.0,0.00011535,2]
[399729126,1766638739104,-500.0,0.00011535,2]
[399729127,1766638739148,-500.0,0.00011535,2]
[399729128,1766638739188,-500.0,0.00011535,2]
[399729129,1766638739234,-500.0,0.00011535,2]
[399729130,1766638739277,-242.49343976,0.00011535,2]
[399729131,1766638739500,-257.50656024,0.00011535,2]
[399729132,1766638867299,-158.49759505,0.00011434,2]
[399729133,1766638867323,-13.88592173,0.0001151,2]
[399729134,1766638870589,-286.11407827,0.0001151,2]
[399729135,1766638870614,-218.43794679,0.00011511,2]
[399729136,1766638900531,-10000.01,0.00011511,2]
[399729137,1766638906561,-10000.01,0.00011511,2]
[399729138,1766638942019,-243.11394327,0.00011434,2]
[399729139,1766638944039,-174.72569709,0.00011434,2]
[399729140,1766638946194,-218.97806842,0.00011434,2]
[399729141,1766638948952,-385.04791094,0.00011434,2]
[399729142,1766638950491,-84.51258247,0.00011434,2]
[399729143,1766638950515,-215.48741753,0.0001151,2]
[399729144,1766638974227,-500.0,0.00011509,2]
[399729145,1766638974264,-500.0,0.00011509,2]
[399729146,1766638974300,-500.0,0.00011509,2]
[399729147,1766638974336,-500.0,0.00011509,2]
[399729148,1766638974372,-500.0,0.00011509,2]
[399729149,1766638974408,-500.0,0.00011509,2]
[399729150,1766638974443,-500.0,0.00011509,2]
[399729151,1766638974477,-500.0,0.00011509,2]
[399729152,1766638974510,-500.0,0.00011509,2]
[399729153,1766638974820,-500.0,0.00011509,2]
[399729154,1766638974951,-500.0,0.00011509,2]
[399729155,1766638974985,-500.0,0.00011509,2]
[399729156,1766638975025,-500.0,0.00011509,2]
[399729157,1766638975060,-500.0,0.00011509,2]
[399729158,1766638975095,-500.0,0.00011509,2]
[399729159,1766638975129,-500.0,0.00011509,2]
[399729160,1766638975163,-500.0,0.00011509,2]
[399729161,1766638975199,-500.0,0.00011509,2]
[399729162,1766638975235,-500.0,0.00011509,2]
[399729163,1766638975273,-500.0,0.00011509,2]
[399729164,1766638975382,-500.0,0.00011509,2]
[399729165,1766638975426,-500.0,0.00011509,2]
[399729166,1766638975460,-500.0,0.00011509,2]
[399729167,1766638975493,-529.5848729,0.00011509,2]
[399729168,1766638975527,-500.0,0.00011509,2]
[399729169,1766638975565,-500.0,0.00011509,2]
[399729170,1766638975599,-500.0,0.00011509,2]
[399729171,1766638975633,-500.0,0.00011509,2]
[399729172,1766638975666,-757.56243454,0.00011509,2]
[399729173,1766638975747,-757.56243454,0.00011509,2]
[399729174,1766638975785,-757.56243454,0.00011509,2]
[399729175,1766638975820,-757.56243454,0.00011509,2]
[399729176,1766638975855,-757.56243454,0.00011509,2]
[399729177,1766638975889,-757.56243454,0.00011509,2]
[399729178,1766638975923,-757.56243454,0.00011509,2]
[399729179,1766638975958,-151.69835098,0.00011509,2]
[399729180,1766638976372,-238.02179816,0.00011509,2]
[399729181,1766638976590,-303.62190704,0.00011509,2]
[399729182,1766638976608,-64.22037836,0.00011509,2]
[399729183,1766638976618,-693.34205618,0.00011509,2]
[399729184,1766638977478,-64.22037836,0.00011509,2]
[399729185,1766638977514,-757.56243454,0.00011509,2]
[399729186,1766638977549,-757.56243454,0.00011509,2]
[399729187,1766638977584,-757.56243454,0.00011509,2]
[399729188,1766638977618,-757.56243454,0.00011509,2]
[399729189,1766638977652,-757.56243454,0.00011509,2]
[399729190,1766638977688,-757.56243454,0.00011509,2]
[399729191,1766638977723,-23.25759426,0.00011509,2]
[399729192,1766638977768,-734.30484028,0.00011509,2]
[399729193,1766638977803,-757.56243454,0.00011509,2]
[399729194,1766638977837,-757.56243454,0.00011509,2]
[399729195,1766638977871,-757.56243454,0.00011509,2]
[399729196,1766638977905,-757.56243454,0.00011509,2]
[399729197,1766638977939,-757.56243454,0.00011509,2]
[399729198,1766638977975,-198.2135395,0.00011509,2]
[399729199,1766638978194,-559.34889504,0.00011509,2]
[399729200,1766638978210,-757.56243454,0.00011509,2]
[399729201,1766638978592,-276.18542143,0.00011509,2]
[399729202,1766639051953,-166.28205718,0.00011438,2]
[399729203,1766639051985,-150.0,0.00011508,2]
[399729204,1766639052017,-1200.0,0.00011508,2]
[399729205,1766639052048,-300.0,0.00011508,2]
[399729206,1766639052081,-300.0,0.00011509,2]
[399729207,1766639052119,-481.37701311,0.00011509,2]
[399729208,1766639052156,-757.56243454,0.00011509,2]
[399729209,1766639052192,-757.56243454,0.00011509,2]
[399729210,1766639052228,-757.56243454,0.00011509,2]
[399729211,1766639052436,-259.31725218,0.00011509,2]
[399729212,1766639057976,-498.24518236,0.00011509,2]
[399729213,1766639058013,-757.56243454,0.00011509,2]
[399729214,1766639058048,-757.56243454,0.00011509,2]
[399729215,1766639058083,-757.56243454,0.00011509,2]
[399729216,1766639058119,-757.56243454,0.00011509,2]
[399729217,1766639058154,-757.56243454,0.00011509,2]
[399729218,1766639058189,-670.33285534,0.00011509,2]
[399729219,1766639058339,-87.2295792,0.00011509,2]
[399729220,1766639064067,-757.56243454,0.00011509,2]
[399729221,1766639064101,-564.45828456,0.00011509,2]
[399729222,1766639064136,-564.45828456,0.00011509,2]
[399729223,1766639064169,-564.45828456,0.00011509,2]
[399729224,1766639064203,-564.45828456,0.00011509,2]
[399729225,1766639064236,-564.45828456,0.00011509,2]
[399729226,1766639064269,-564.45828456,0.00011509,2]
[399729227,1766639064301,-564.45828456,0.00011509,2]
[399729228,1766639064335,-18.01086252,0.00011509,2]
[399729229,1766639064480,-546.44742204,0.00011509,2]
[399729230,1766639223847,-180.37343153,0.00011434,2]
[399729231,1766639223881,-4222.39933908,0.00011435,2]
[399729232,1766639223913,-385.00385036,0.00011438,2]
[399729233,1766639223979,-424.45675806,0.00011438,2]
[399729234,1766639229910,-300.0,0.00011507,2]
[399729235,1766639229945,-300.0,0.00011508,2]
[399729236,1766639229980,-1200.0,0.00011508,2]
[399729237,1766639230014,-150.0,0.00011508,2]
[399729238,1766639230130,-6100.01,0.0001151,2]
[399729239,1766639266131,-10000.01,0.0001151,2]
[399729240,1766639275124,-10000.01,0.0001151,2]
[399729241,1766639278236,-10000.01,0.0001151,2]
[399729242,1766639278438,-3353.81848135,0.0001151,2]
[399729243,1766639278463,-3292.3730373,0.0001151,2]
[399729244,1766639278569,-250.0,0.00011511,2]
[399729245,1766639278606,-9500.01,0.00011511,2]
[399729246,1766639278720,-10000.01,0.00011511,2]
[399729247,1766639278819,-10000.01,0.00011511,2]
[399729248,1766639278930,-10000.01,0.00011511,2]
[399729249,1766639279036,-10000.01,0.00011511,2]
[399729250,1766639281152,-10000.01,0.00011511,2]
[399729251,1766639284370,-300.0,0.0001151,2]
[399729252,1766639284420,-9400.01,0.00011511,2]
[399729253,1766639284498,-10000.01,0.00011511,2]
[399729254,1766639284620,-10000.01,0.00011511,2]
[399729255,1766639284735,-10000.01,0.00011511,2]
[399729256,1766639284836,-10000.01,0.00011511,2]
[399729257,1766639284987,-10000.01,0.00011511,2]
[399729258,1766639305560,-205.0,0.0001151,2]
[399729259,1766639305591,-250.0,0.00011511,2]
[399729260,1766639305650,-9090.01,0.00011511,2]
[399729261,1766639305778,-10000.01,0.00011511,2]
[399729262,1766639305928,-10000.01,0.00011511,2]
[399729263,1766639306053,-10000.01,0.00011511,2]
[399729264,1766639306160,-10000.01,0.00011511,2]
[399729265,1766639306287,-10000.01,0.00011511,2]
[399729266,1766639306494,-10000.01,0.00011511,2]
[399729267,1766639306558,-10000.01,0.00011511,2]
[399729268,1766639306678,-3911.27024281,0.00011511,2]
[399729269,1766639317018,-155.40723773,0.00011522,2]
[399729270,1766639319227,-94.59276227,0.00011522,2]
[399729271,1766639319250,-207.4,0.00011531,2]
[399729272,1766639319275,-0.00723773,0.00011531,2]
[399729273,1766639320620,-171.43121784,0.00011531,2]
[399729274,1766639322769,-313.00623549,0.00011531,2]
[399729275,1766639324970,-15.55530894,0.00011531,2]
[399729276,1766639324993,-341.16975742,0.00011531,2]
[399729277,1766639326514,-151.26814692,0.00011531,2]
[399729278,1766639328528,-7.56209566,0.00011531,2]
[399729279,1766639328551,-235.73486716,0.00011531,2]
[399729280,1766639332363,-264.26513284,0.00011531,2]
[399729281,1766639332387,-108.09791941,0.00011531,2]
[399729282,1766639334618,-191.90931832,0.00011531,2]
[399729283,1766639338705,-199.99276227,0.00011531,2]
[399729284,1766639338728,-13.09791941,0.00011531,2]
[399729285,1766639339602,-486.90208059,0.00011531,2]
[399729286,1766639339632,-500.0,0.00011531,2]
[399729287,1766639339660,-500.0,0.00011531,2]
[399729288,1766639339692,-500.0,0.00011531,2]
[399729289,1766639339722,-500.0,0.00011531,2]
[399729290,1766639339751,-500.0,0.00011531,2]
[399729291,1766639339779,-500.0,0.00011531,2]
[399729292,1766639339808,-500.0,0.00011531,2]
[399729293,1766639339837,-500.0,0.00011531,2]
[399729294,1766639339865,-500.0,0.00011531,2]
[399729295,1766639340042,-26.20583882,0.00011531,2]